[Event "FIDE World Cup G12-B 2024"]
[Site "Batumi"]
[Date "2024.06.24"]
[Round "2.1"]
[White "Gunawardhana, Devindya Oshini"]
[Black "Gao, Lilianna"]
[Result "1-0"]
[ECO "B31"]
[WhiteElo "1980"]
[BlackElo "1646"]
[Annotator "NA RC"]
[PlyCount "99"]
[EventDate "2024.06.23"]
[EventType "swiss"]
[EventCountry "GEO"]
[SourceTitle "playchess.com"]
[Source "ChessBase"]
[SourceQuality "1"]
[TimeControl "5400+30"]

1. e4 {[%emt 0:00:03]} c5 {[%emt 0:00:19]} 2. Nf3 {[%emt 0:00:07]} Nc6 {[%emt 0:00:16]} 3. Bb5 {[%emt 0:00:16]} g6 {[%emt 0:00:18]} 4. O-O {[%emt 0:01:39]} Bg7 {[%emt 0:00:41]} 5. d3 {[%emt 0:04:50]} e5 {[%emt 0:06:41]} 6. Be3 {[%emt 0:05:39]} b6 {[%emt 0:01:37]} 7. c3 {[%emt 0:03:04]} Nge7 {[%emt 0:06:26]} 8. d4 {[%emt 0:01:47]} cxd4 {[%emt 0:09:54]} 9. cxd4 {[%emt 0:00:06]} exd4 {[%emt 0:03:18]} 10. Nxd4 {[%emt 0:00:11]} Bb7 {[%emt 0:06:16]} 11. Nc3 {[%emt 0:00:52]} a6 {[%emt 0:03:32]} 12. Be2 {[%emt 0:07:00]} Qc7 {[%emt 0:07:07]} 13. Rc1 {[%emt 0:04:08]} Qb8 {[%emt 0:11:44]} 14. Na4 {[%emt 0:07:38]} Nc8 {[%emt 0:06:18]} 15. Bg4 {[%emt 0:07:41]} (15. Nb3 $18) 15... Qd6 {[%emt 0:02:36]} (15... O-O $16) 16. Nf3 $18 {[%emt 0:03:35]} Qxd1 {[%emt 0:07:03]} 17. Rfxd1 {[%emt 0:00:11]} d6 {[%emt 0:02:04]} 18. Bxc8 {[%emt 0:03:42]} Rxc8 {[%emt 0:00:16]} 19. Nxb6 {[%emt 0:01:37]} Rd8 {[%emt 0:00:43]} 20. Nd5 {[%emt 0:01:23]} O-O {[%emt 0:01:15]} 21. b3 {[%emt 0:13:23]} Rfe8 {[%emt 0:02:18]} 22. Nd2 {[%emt 0:00:09]} Nd4 {[%emt 0:02:05]} 23. Bxd4 {[%emt 0:05:57]} Bxd4 {[%emt 0:00:18]} 24. Rc4 {[%emt 0:02:04]} Bg7 {[%emt 0:01:12]} 25. f3 {[%emt 0:01:54]} Bxd5 {[%emt 0:02:45]} 26. exd5 {[%emt 0:00:01]} Re2 {[%emt 0:00:47]} 27. Re4 {[%emt 0:00:12]} Re8 {[%emt 0:00:35]} 28. Rxe8+ {[%emt 0:01:04]} Rxe8 {[%emt 0:00:02]} 29. Ne4 {[%emt 0:00:02]} Be5 {[%emt 0:01:27]} 30. f4 {[%emt 0:02:02]} Bg7 {[%emt 0:00:39]} 31. Nxd6 {[%emt 0:00:06]} Re2 {[%emt 0:00:20]} 32. Nc4 {[%emt 0:00:43]} Re4 {[%emt 0:01:19]} 33. g3 {[%emt 0:01:08]} Bd4+ {[%emt 0:00:18]} 34. Kf1 {[%emt 0:00:05]} Bc5 {[%emt 0:01:24]} 35. d6 {[%emt 0:00:06]} Re8 {[%emt 0:00:26]} 36. d7 {[%emt 0:00:09]} Rd8 {[%emt 0:00:20]} 37. Ne5 {[%emt 0:00:04]} Kf8 {[%emt 0:00:46]} 38. Nc6 {[%emt 0:00:03]} Bb6 {[%emt 0:00:26]} 39. Nxd8 {[%emt 0:00:03]} Bxd8 {[%emt 0:00:05]} 40. Re1 {[%emt 0:00:03]} Be7 {[%emt 0:00:08]} 41. b4 {[%emt 0:00:03]} h6 {[%emt 0:00:53]} 42. a4 {[%emt 0:00:03]} h5 {[%emt 0:00:37]} 43. b5 {[%emt 0:00:09]} axb5 {[%emt 0:01:17]} 44. axb5 {[%emt 0:00:03]} f6 {[%emt 0:00:59]} 45. b6 {[%emt 0:00:03]} Kf7 {[%emt 0:00:11]} 46. b7 {[%emt 0:00:04]} Bd8 {[%emt 0:00:26]} 47. b8=Q {[%emt 0:00:05]} Ba5 {[%emt 0:00:12]} 48. Qe8+ {[%emt 0:00:03]} Kg7 {[%emt 0:00:06]} 49. Re7+ {[%emt 0:00:02]} Kh6 {[%emt 0:00:04]} 50. Qh8# {[%emt 0:00:02]} 1-0

[Event "FIDE World Cup G12-B 2024"]
[Site "Batumi"]
[Date "2024.06.24"]
[Round "2.2"]
[White "Pratitee Bordoloi"]
[Black "Rusitashvili, Tea"]
[Result "1-0"]
[ECO "B33"]
[WhiteElo "1796"]
[BlackElo "1535"]
[Annotator "NA RC"]
[PlyCount "111"]
[EventDate "2024.06.23"]
[EventType "swiss"]
[EventCountry "GEO"]
[SourceTitle "playchess.com"]
[Source "ChessBase"]
[SourceQuality "1"]
[TimeControl "5400+30"]

1. e4 {[%emt 0:00:04]} c5 {[%emt 0:00:08]} 2. Nf3 {[%emt 0:00:06]} Nc6 {[%emt 0:00:06]} 3. d4 {[%emt 0:00:06]} cxd4 {[%emt 0:00:07]} 4. Nxd4 {[%emt 0:00:07]} Nf6 {[%emt 0:00:17]} 5. Nc3 {[%emt 0:00:15]} e5 {[%emt 0:00:27]} 6. Ndb5 {[%emt 0:00:11]} d6 {[%emt 0:00:16]} 7. Bg5 {[%emt 0:00:07]} a6 {[%emt 0:00:33]} 8. Na3 {[%emt 0:00:06]} b5 {[%emt 0:00:40]} 9. Nd5 {[%emt 0:00:07]} Be7 {[%emt 0:01:07]} 10. Bxf6 {[%emt 0:00:08]} Bxf6 {[%emt 0:00:14]} 11. c4 {[%emt 0:00:09]} b4 {[%emt 0:01:47]} 12. Nc2 {[%emt 0:00:05]} a5 {[%emt 0:00:12]} 13. Be2 {[%emt 0:00:34]} O-O {[%emt 0:00:58]} 14. Qd3 {[%emt 0:00:11]} Be6 {[%emt 0:03:22]} 15. O-O {[%emt 0:04:14]} Bxd5 {[%emt 0:02:22]} 16. cxd5 {[%emt 0:01:42]} Ne7 {[%emt 0:00:30]} 17. g3 {[%emt 0:02:13]} g6 {[%emt 0:03:11]} 18. Ne3 {[%emt 0:01:53]} Bg7 {[%emt 0:00:49]} 19. Bg4 {[%emt 0:01:59]} h5 {[%emt 0:03:18]} 20. Bh3 {[%emt 0:01:02]} Kh7 {[%emt 0:01:37]} 21. Rac1 {[%emt 0:01:02]} Rh8 {[%emt 0:03:25]} 22. Rc4 {[%emt 0:01:33]} g5 {[%emt 0:09:32]} 23. Bf5+ {[%emt 0:01:22]} Nxf5 {[%emt 0:00:30]} 24. Nxf5 {[%emt 0:00:20]} Qf6 {[%emt 0:00:24]} 25. Rc6 {[%emt 0:00:56]} Rhd8 {[%emt 0:01:26]} 26. Rfc1 {[%emt 0:03:22]} g4 {[%emt 0:04:03]} 27. Rc7 {[%emt 0:01:11]} Bh6 {[%emt 0:02:50]} 28. R1c6 {[%emt 0:00:13]} Kg8 {[%emt 0:00:37]} 29. Qc4 {[%emt 0:01:50]} Bf8 {[%emt 0:01:54]} 30. Kg2 {[%emt 0:02:49]} Qg5 {[%emt 0:01:10]} 31. Qe2 {[%emt 0:01:26]} a4 {[%emt 0:04:43]} 32. Qe3 {[%emt 0:06:32]} Qf6 {[%emt 0:09:26]} 33. Rb7 {[%emt 0:00:51]} Rab8 {[%emt 0:04:38]} 34. Qb6 {[%emt 0:04:44]} Rxb7 {[%emt 0:02:28]} 35. Qxb7 {[%emt 0:00:06]} b3 {[%emt 0:02:34]} 36. axb3 {[%emt 0:03:39]} axb3 {[%emt 0:00:10]} 37. Qxb3 {[%emt 0:00:09]} Qg5 {[%emt 0:00:20]} 38. Qe3 {[%emt 0:03:22]} Qxe3 {[%emt 0:03:22]} 39. Nxe3 {[%emt 0:00:08]} Rb8 {[%emt 0:00:09]} 40. Nc4 {[%emt 0:00:15]} Rb4 {[%emt 0:00:49]} 41. Kf1 {[%emt 0:03:50]} Be7 {[%emt 0:03:30]} 42. Ke2 {[%emt 0:02:09]} Kg7 {[%emt 0:00:56]} 43. Kd2 {[%emt 0:01:37]} Rb3 {[%emt 0:00:55]} 44. Rb6 {[%emt 0:00:51]} Bg5+ {[%emt 0:03:59]} 45. Ke2 {[%emt 0:00:49]} Rxb6 {[%emt 0:01:30]} 46. Nxb6 {[%emt 0:00:11]} Kf6 {[%emt 0:00:46]} 47. Nc8 {[%emt 0:00:16]} Bc1 {[%emt 0:00:29]} 48. b4 {[%emt 0:00:17]} Ba3 {[%emt 0:01:05]} 49. b5 {[%emt 0:00:06]} Bc5 {[%emt 0:00:14]} 50. b6 {[%emt 0:00:04]} Bxb6 {[%emt 0:00:42]} 51. Nxb6 {[%emt 0:00:06]} Ke7 {[%emt 0:00:25]} 52. Kd3 {[%emt 0:00:10]} Kd8 {[%emt 0:00:18]} 53. Kc4 {[%emt 0:00:13]} Kc7 {[%emt 0:01:37]} 54. Kb5 {[%emt 0:00:06]} Kb7 {[%emt 0:00:10]} 55. Nd7 {[%emt 0:00:09]} Kc7 {[%emt 0:00:52]} 56. Nf6 {[%emt 0:00:06]} 1-0

[Event "FIDE World Cup G12-B 2024"]
[Site "Batumi"]
[Date "2024.06.24"]
[Round "2.3"]
[White "Amanzhol, Khanzada"]
[Black "Bassari, Senem Gul"]
[Result "1-0"]
[ECO "B53"]
[WhiteElo "1685"]
[BlackElo "1768"]
[Annotator "NA RC"]
[PlyCount "143"]
[EventDate "2024.06.23"]
[EventType "swiss"]
[EventCountry "GEO"]
[SourceTitle "playchess.com"]
[Source "ChessBase"]
[SourceQuality "1"]
[TimeControl "5400+30"]

1. e4 {[%emt 0:00:18]} c5 {[%emt 0:00:10]} 2. Nf3 {[%emt 0:00:18]} d6 {[%emt 0:00:09]} 3. d4 {[%emt 0:00:19]} cxd4 {[%emt 0:00:06]} 4. Qxd4 {[%emt 0:00:16]} Nc6 {[%emt 0:00:23]} 5. Bb5 {[%emt 0:00:32]} Bd7 {[%emt 0:00:13]} 6. Bxc6 {[%emt 0:00:19]} bxc6 {[%emt 0:00:18]} 7. Nc3 {[%emt 0:01:55]} e5 {[%emt 0:01:15]} 8. Qd3 {[%emt 0:01:00]} h6 {[%emt 0:00:10]} 9. b3 {[%emt 0:03:17]} Nf6 {[%emt 0:01:37]} 10. Bb2 {[%emt 0:02:57]} Be7 {[%emt 0:03:02]} 11. O-O-O {[%emt 0:02:48]} O-O {[%emt 0:06:10]} 12. h3 {[%emt 0:05:36]} Be6 {[%emt 0:09:44]} 13. g4 {[%emt 0:03:14]} Nh7 {[%emt 0:01:28]} 14. Qa6 {[%emt 0:09:13]} Qc7 {[%emt 0:04:45]} 15. Kb1 {[%emt 0:07:50]} Rfd8 {[%emt 0:05:06]} 16. Rhg1 {[%emt 0:01:48]} Ng5 {[%emt 0:08:47]} 17. Nxg5 {[%emt 0:02:35]} Bxg5 {[%emt 0:00:16]} 18. Na4 {[%emt 0:00:58]} Rab8 {[%emt 0:05:35]} 19. Qe2 {[%emt 0:05:47]} c5 {[%emt 0:11:50]} 20. c4 {[%emt 0:02:45]} Rb4 {[%emt 0:06:10]} 21. Nc3 {[%emt 0:01:49]} a6 {[%emt 0:01:46]} 22. Nd5 {[%emt 0:02:58]} Bxd5 {[%emt 0:00:18]} 23. Rxd5 {[%emt 0:01:20]} a5 {[%emt 0:01:58]} 24. Kc2 {[%emt 0:02:23]} a4 {[%emt 0:02:06]} 25. Rd3 {[%emt 0:04:31]} Rdb8 {[%emt 0:02:24]} 26. Rc3 {[%emt 0:03:24]} Qb7 {[%emt 0:03:21]} 27. Qd3 {[%emt 0:01:15]} Bd8 {[%emt 0:08:43]} 28. Ba3 {[%emt 0:01:45]} Rb6 {[%emt 0:01:29]} 29. Qf3 {[%emt 0:01:07]} Ra6 {[%emt 0:05:38]} 30. Bb2 {[%emt 0:01:05]} Ba5 {[%emt 0:03:15]} 31. Rd3 {[%emt 0:00:17]} Bd8 {[%emt 0:00:39]} 32. Rgd1 {[%emt 0:02:08]} Be7 {[%emt 0:02:45]} 33. h4 {[%emt 0:02:31]} Bxh4 {[%emt 0:03:09]} 34. Rxd6 {[%emt 0:00:52]} axb3+ {[%emt 0:01:23]} 35. axb3 {[%emt 0:00:14]} Rxd6 {[%emt 0:00:27]} 36. Rxd6 {[%emt 0:00:07]} Bf6 {[%emt 0:01:18]} 37. Rd5 {[%emt 0:00:55]} Qc7 {[%emt 0:00:31]} 38. Qe3 {[%emt 0:00:56]} Rc8 {[%emt 0:00:28]} 39. Ba3 {[%emt 0:01:41]} Be7 {[%emt 0:00:34]} 40. Qd3 {[%emt 0:01:25]} Qa5 {[%emt 0:00:26]} 41. Bb2 {[%emt 0:00:17]} Qe1 {[%emt 0:00:33]} 42. Qf3 {[%emt 0:01:27]} Bf6 {[%emt 0:00:29]} 43. Bc3 {[%emt 0:00:18]} Qg1 {[%emt 0:00:31]} 44. Rd1 {[%emt 0:01:24]} Qh2 {[%emt 0:00:04]} 45. Rh1 {[%emt 0:00:13]} Qf4 {[%emt 0:00:08]} 46. Qxf4 {[%emt 0:00:05]} exf4 {[%emt 0:00:01]} 47. Bxf6 {[%emt 0:00:09]} gxf6 {[%emt 0:00:03]} 48. Rxh6 {[%emt 0:00:05]} Kg7 {[%emt 0:00:02]} 49. Rh5 {[%emt 0:00:16]} Kg6 {[%emt 0:00:29]} 50. Rf5 {[%emt 0:00:13]} f3 {[%emt 0:00:13]} 51. Rxf3 {[%emt 0:00:38]} Kg5 {[%emt 0:00:09]} 52. Rf5+ {[%emt 0:00:19]} Kg6 {[%emt 0:00:16]} 53. Kc3 {[%emt 0:00:51]} Rc7 {[%emt 0:00:55]} 54. b4 {[%emt 0:00:18]} cxb4+ {[%emt 0:00:05]} 55. Kxb4 {[%emt 0:00:04]} Rb7+ {[%emt 0:00:01]} 56. Ka5 {[%emt 0:01:10]} Rb1 {[%emt 0:00:34]} 57. c5 {[%emt 0:00:09]} Re1 {[%emt 0:00:04]} 58. f3 {[%emt 0:00:06]} Rc1 {[%emt 0:00:09]} 59. Kb6 {[%emt 0:00:08]} Kg7 {[%emt 0:00:31]} 60. c6 {[%emt 0:00:07]} Kf8 {[%emt 0:00:04]} 61. c7 {[%emt 0:00:47]} Ke7 {[%emt 0:00:10]} 62. Rc5 {[%emt 0:00:08]} Rxc5 {[%emt 0:00:25]} 63. Kxc5 {[%emt 0:00:04]} Kd7 {[%emt 0:00:14]} 64. Kb6 {[%emt 0:00:07]} Kc8 {[%emt 0:00:12]} 65. Kc6 {[%emt 0:00:05]} f5 {[%emt 0:00:03]} 66. exf5 {[%emt 0:00:23]} f6 {[%emt 0:00:02]} 67. Kd6 {[%emt 0:00:05]} Kb7 {[%emt 0:00:02]} 68. Kd7 {[%emt 0:00:06]} Ka7 {[%emt 0:00:05]} 69. c8=Q {[%emt 0:00:11]} Kb6 {[%emt 0:00:01]} 70. Qc6+ {[%emt 0:00:11]} Ka7 {[%emt 0:00:04]} 71. Qb5 {[%emt 0:00:10]} Ka8 {[%emt 0:00:04]} 72. Kc7 {[%emt 0:00:05]} 1-0

[Event "FIDE World Cup G12-B 2024"]
[Site "Batumi"]
[Date "2024.06.24"]
[Round "2.4"]
[White "Siddhi Rao"]
[Black "Xu, Luna Yuexiu"]
[Result "0-1"]
[ECO "B90"]
[WhiteElo "1601"]
[BlackElo "1761"]
[Annotator "NA RC"]
[PlyCount "166"]
[EventDate "2024.06.23"]
[EventType "swiss"]
[EventCountry "GEO"]
[SourceTitle "playchess.com"]
[Source "ChessBase"]
[SourceQuality "1"]
[TimeControl "5400+30"]

1. e4 {[%emt 0:00:04]} c5 {[%emt 0:00:11]} 2. Nf3 {[%emt 0:00:05]} d6 {[%emt 0:00:17]} 3. d4 {[%emt 0:00:04]} cxd4 {[%emt 0:00:36]} 4. Nxd4 {[%emt 0:00:03]} Nf6 {[%emt 0:00:30]} 5. Nc3 {[%emt 0:00:03]} a6 {[%emt 0:00:16]} 6. Be3 {[%emt 0:00:04]} e5 {[%emt 0:00:42]} 7. Nb3 {[%emt 0:00:05]} Be6 {[%emt 0:00:37]} 8. f3 {[%emt 0:00:03]} Nbd7 {[%emt 0:01:10]} 9. Qd2 {[%emt 0:00:21]} b5 {[%emt 0:01:34]} 10. g4 {[%emt 0:16:36]} Nb6 {[%emt 0:04:36]} 11. g5 {[%emt 0:05:10]} Nfd7 {[%emt 0:01:17]} 12. Nd5 {[%emt 0:04:26]} Bxd5 {[%emt 0:04:34]} 13. exd5 {[%emt 0:00:07]} Qc7 {[%emt 0:04:04]} 14. h4 {[%emt 0:16:42]} Rc8 {[%emt 0:09:58]} 15. Rh2 {[%emt 0:01:12]} Be7 {[%emt 0:01:25]} 16. O-O-O {[%emt 0:03:49]} Nc4 {[%emt 0:18:23]} 17. Bxc4 {[%emt 0:14:00]} bxc4 {[%emt 0:00:59]} 18. Na5 {[%emt 0:00:04]} Nb8 {[%emt 0:01:15]} 19. Qb4 {[%emt 0:01:55]} Bd8 {[%emt 0:03:16]} 20. Nb7 {[%emt 0:08:05]} Be7 {[%emt 0:01:02]} 21. Qa4+ {[%emt 0:01:57]} Qd7 {[%emt 0:01:57]} 22. Qxd7+ {[%emt 0:01:16]} Nxd7 {[%emt 0:00:16]} 23. Na5 {[%emt 0:01:21]} Nb8 {[%emt 0:02:26]} 24. Ba7 {[%emt 0:00:37]} Nd7 {[%emt 0:01:39]} 25. Nc6 {[%emt 0:01:29]} h6 {[%emt 0:01:41]} 26. Rg2 {[%emt 0:04:17]} hxg5 {[%emt 0:04:16]} 27. hxg5 {[%emt 0:00:03]} Rh3 {[%emt 0:01:14]} 28. Rf1 {[%emt 0:00:12]} Rh5 {[%emt 0:02:09]} 29. Rfg1 {[%emt 0:00:16]} Nf8 {[%emt 0:00:46]} 30. Be3 {[%emt 0:02:34]} Ng6 {[%emt 0:02:27]} 31. Rg4 {[%emt 0:01:11]} Rh4 {[%emt 0:02:42]} 32. Kd2 {[%emt 0:00:32]} Rh3 {[%emt 0:02:11]} 33. R1g3 {[%emt 0:11:58]} Rxg3 {[%emt 0:01:51]} 34. Rxg3 {[%emt 0:00:03]} Nh4 {[%emt 0:01:01]} 35. Rh3 {[%emt 0:01:43]} Nf5 {[%emt 0:00:16]} 36. Rh8+ {[%emt 0:01:57]} Kd7 {[%emt 0:00:26]} 37. Nb8+ {[%emt 0:01:50]} Kc7 {[%emt 0:01:11]} 38. Nxa6+ {[%emt 0:00:14]} Kb7 {[%emt 0:01:17]} 39. Rxc8 {[%emt 0:00:04]} Kxc8 {[%emt 0:00:09]} 40. f4 {[%emt 0:00:23]} exf4 {[%emt 0:00:58]} 41. Bxf4 {[%emt 0:00:02]} Nd4 {[%emt 0:00:12]} 42. Kd1 {[%emt 0:02:53]} Nf3 {[%emt 0:00:42]} 43. Nb4 {[%emt 0:00:54]} Nxg5 {[%emt 0:02:19]} 44. Nc6 {[%emt 0:00:42]} Bf6 {[%emt 0:00:48]} 45. Bxd6 {[%emt 0:00:54]} Bxb2 {[%emt 0:00:45]} 46. a4 {[%emt 0:00:34]} Ne4 {[%emt 0:01:02]} 47. Bb4 {[%emt 0:00:08]} Bc3 {[%emt 0:01:46]} 48. Be7 {[%emt 0:00:49]} Kd7 {[%emt 0:01:12]} 49. Bf8 {[%emt 0:00:31]} Nf6 {[%emt 0:00:36]} 50. Nb8+ {[%emt 0:00:34]} Kc8 {[%emt 0:00:16]} 51. Nc6 {[%emt 0:00:24]} Nxd5 {[%emt 0:00:25]} 52. Ne7+ {[%emt 0:00:12]} Nxe7 {[%emt 0:00:08]} 53. Bxe7 {[%emt 0:00:04]} Kb7 {[%emt 0:00:06]} 54. Ke2 {[%emt 0:00:30]} Ka6 {[%emt 0:00:24]} 55. Bd8 {[%emt 0:00:05]} Bd4 {[%emt 0:00:46]} 56. Kd2 {[%emt 0:01:22]} Bb6 {[%emt 0:02:38]} 57. Be7 {[%emt 0:00:05]} Bd4 {[%emt 0:00:38]} 58. Bb4 {[%emt 0:00:25]} g5 {[%emt 0:00:21]} 59. Ke2 {[%emt 0:00:48]} Kb7 {[%emt 0:00:24]} 60. Kf3 {[%emt 0:00:23]} Kc6 {[%emt 0:00:18]} 61. Be7 {[%emt 0:00:30]} f6 {[%emt 0:00:30]} 62. Ke4 {[%emt 0:00:22]} Be5 {[%emt 0:01:34]} 63. Kf5 {[%emt 0:00:29]} Kb6 {[%emt 0:00:43]} 64. Bb4 {[%emt 0:00:59]} Bd4 {[%emt 0:01:15]} 65. Ke4 {[%emt 0:00:49]} Be5 {[%emt 0:01:47]} 66. Kd5 {[%emt 0:00:34]} c3 {[%emt 0:00:52]} 67. Bc5+ {[%emt 0:00:27]} Ka5 {[%emt 0:00:22]} 68. Be3 {[%emt 0:00:32]} Kxa4 {[%emt 0:00:07]} 69. Bc1 {[%emt 0:00:03]} Kb5 {[%emt 0:00:12]} 70. Ke4 {[%emt 0:00:06]} Kb4 {[%emt 0:00:14]} 71. Kf5 {[%emt 0:00:25]} Bf4 {[%emt 0:00:20]} 72. Bxf4 {[%emt 0:00:24]} gxf4 {[%emt 0:00:07]} 73. Kxf4 {[%emt 0:00:01]} Ka3 {[%emt 0:00:09]} 74. Kf5 {[%emt 0:00:02]} Kb2 {[%emt 0:00:09]} 75. Kxf6 {[%emt 0:00:02]} Kxc2 {[%emt 0:00:07]} 76. Ke5 {[%emt 0:00:03]} Kd3 {[%emt 0:00:30]} 77. Kf6 {[%emt 0:00:04]} c2 {[%emt 0:00:06]} 78. Kg7 {[%emt 0:00:04]} c1=Q {[%emt 0:00:06]} 79. Kh8 {[%emt 0:00:02]} Qg5 {[%emt 0:00:14]} 80. Kh7 {[%emt 0:00:03]} Ke4 {[%emt 0:00:12]} 81. Kh8 {[%emt 0:00:02]} Kf5 {[%emt 0:00:10]} 82. Kh7 {[%emt 0:00:02]} Kf6 {[%emt 0:00:08]} 83. Kh8 {[%emt 0:00:01]} Qg7# {[%emt 0:18:45]} 0-1

[Event "FIDE World Cup G12-B 2024"]
[Site "Batumi"]
[Date "2024.06.24"]
[Round "2.5"]
[White "Pavithra R V"]
[Black "Tereshchenko, Eliza"]
[Result "1-0"]
[ECO "A04"]
[WhiteElo "1614"]
[BlackElo "1694"]
[Annotator "NA RC"]
[PlyCount "133"]
[EventDate "2024.06.23"]
[EventType "swiss"]
[EventCountry "GEO"]
[SourceTitle "playchess.com"]
[Source "ChessBase"]
[SourceQuality "1"]
[TimeControl "5400+30"]

1. e4 {[%emt 0:00:02]} c5 {[%emt 0:00:07]} 2. Nf3 {[%emt 0:00:05]} Nc6 {[%emt 0:00:04]} 3. d3 {[%emt 0:00:05]} g6 {[%emt 0:01:12]} 4. g3 {[%emt 0:00:08]} Bg7 {[%emt 0:00:30]} 5. Bg2 {[%emt 0:00:05]} d6 {[%emt 0:01:04]} 6. O-O {[%emt 0:00:21]} e6 {[%emt 0:00:39]} 7. c3 {[%emt 0:00:17]} Qb6 {[%emt 0:03:45]} 8. Re1 {[%emt 0:00:28]} Nge7 {[%emt 0:01:05]} 9. Nbd2 {[%emt 0:00:39]} O-O {[%emt 0:05:15]} 10. Nb3 {[%emt 0:04:39]} Rd8 {[%emt 0:07:00]} 11. Be3 {[%emt 0:04:40]} a5 {[%emt 0:05:26]} 12. a4 {[%emt 0:01:00]} Qc7 {[%emt 0:02:13]} 13. Nbd2 {[%emt 0:01:45]} b6 {[%emt 0:01:09]} 14. h4 {[%emt 0:04:07]} Ba6 {[%emt 0:02:53]} 15. Qc2 {[%emt 0:01:41]} d5 {[%emt 0:04:18]} 16. h5 {[%emt 0:01:55]} d4 {[%emt 0:04:53]} 17. cxd4 {[%emt 0:02:11]} cxd4 {[%emt 0:00:10]} 18. Bg5 {[%emt 0:00:24]} f6 {[%emt 0:01:21]} 19. hxg6 {[%emt 0:00:07]} hxg6 {[%emt 0:01:11]} 20. Bh4 {[%emt 0:00:08]} g5 {[%emt 0:01:21]} 21. Bxg5 {[%emt 0:00:20]} fxg5 {[%emt 0:00:11]} 22. Nxg5 {[%emt 0:00:04]} Qe5 {[%emt 0:18:40]} 23. f4 {[%emt 0:02:01]} Qc5 {[%emt 0:06:00]} 24. Qb3 {[%emt 0:00:51]} Bc8 {[%emt 0:00:56]} 25. Nxe6 {[%emt 0:06:48]} Bxe6 {[%emt 0:03:16]} 26. Qxe6+ {[%emt 0:00:08]} Kf8 {[%emt 0:01:48]} 27. e5 {[%emt 0:00:58]} Rdc8 {[%emt 0:05:26]} 28. Ne4 {[%emt 0:09:22]} Qd5 {[%emt 0:02:39]} 29. Qg4 {[%emt 0:01:34]} Qf7 {[%emt 0:04:41]} 30. Nd6 {[%emt 0:03:45]} Qg6 {[%emt 0:00:21]} 31. Qxg6 {[%emt 0:00:06]} Nxg6 {[%emt 0:00:02]} 32. Nxc8 {[%emt 0:00:09]} Rxc8 {[%emt 0:00:01]} 33. Rac1 {[%emt 0:00:32]} Nge7 {[%emt 0:01:23]} 34. Rc4 {[%emt 0:02:03]} Nb4 {[%emt 0:01:00]} 35. Rxc8+ {[%emt 0:00:51]} Nxc8 {[%emt 0:00:02]} 36. Rc1 {[%emt 0:00:11]} Ne7 {[%emt 0:00:07]} 37. Be4 {[%emt 0:00:03]} Ned5 {[%emt 0:02:58]} 38. Rc4 {[%emt 0:00:42]} Ne3 {[%emt 0:03:28]} 39. Rxd4 {[%emt 0:00:24]} Nd1 {[%emt 0:02:43]} 40. b3 {[%emt 0:02:03]} Nc3 {[%emt 0:04:42]} 41. Rd6 {[%emt 0:00:39]} Ne2+ {[%emt 0:00:22]} 42. Kf2 {[%emt 0:00:15]} Nc1 {[%emt 0:00:06]} 43. Rxb6 {[%emt 0:00:41]} Nxb3 {[%emt 0:00:08]} 44. Rb8+ {[%emt 0:00:29]} Ke7 {[%emt 0:00:56]} 45. Rb7+ {[%emt 0:00:06]} Kf8 {[%emt 0:00:04]} 46. e6 {[%emt 0:00:55]} Bd4+ {[%emt 0:01:57]} 47. Kg2 {[%emt 0:00:07]} Bc5 {[%emt 0:00:22]} 48. f5 {[%emt 0:00:12]} Nd4 {[%emt 0:01:00]} 49. g4 {[%emt 0:00:42]} Nbc2 {[%emt 0:01:19]} 50. g5 {[%emt 0:01:49]} Ne3+ {[%emt 0:00:32]} 51. Kh3 {[%emt 0:00:25]} Ke8 {[%emt 0:01:59]} 52. g6 {[%emt 0:01:02]} Nexf5 {[%emt 0:00:35]} 53. Bxf5 {[%emt 0:00:55]} Nxf5 {[%emt 0:00:01]} 54. Rb5 {[%emt 0:00:09]} Ng7 {[%emt 0:01:21]} 55. Rxc5 {[%emt 0:00:04]} Nxe6 {[%emt 0:00:08]} 56. Re5 {[%emt 0:00:03]} Kd7 {[%emt 0:00:30]} 57. Rxe6 {[%emt 0:00:06]} Kxe6 {[%emt 0:00:02]} 58. Kg4 {[%emt 0:00:08]} Kf6 {[%emt 0:00:07]} 59. Kh5 {[%emt 0:00:04]} Kg7 {[%emt 0:00:05]} 60. Kg5 {[%emt 0:00:02]} Kg8 {[%emt 0:00:17]} 61. Kf6 {[%emt 0:00:08]} Kh8 {[%emt 0:00:04]} 62. g7+ {[%emt 0:00:07]} Kg8 {[%emt 0:00:20]} 63. d4 {[%emt 0:00:03]} Kh7 {[%emt 0:00:04]} 64. Kf7 {[%emt 0:00:02]} Kh6 {[%emt 0:00:05]} 65. g8=Q {[%emt 0:00:04]} Kh5 {[%emt 0:00:05]} 66. Qg3 {[%emt 0:00:04]} Kh6 {[%emt 0:00:07]} 67. Qg6# {[%emt 0:00:09]} 1-0